bitfinex-derivatives/quotes_BTCF0:USTF0_20240903
["timestamp","ask_amount","ask_price","bid_price","bid_amount"]
[1725341332178,0.1234,59243.0,59242.0,0.42856907]
[1725341332395,0.1224,59243.0,59242.0,0.42856907]
[1725341334588,0.1234,59243.0,59242.0,0.42856907]
[1725341335298,0.1204,59243.0,59242.0,0.42856907]
[1725341335481,0.1224,59243.0,59242.0,0.42856907]
[1725341341500,0.0024,59243.0,59242.0,0.42856907]
[1725341342505,0.0024,59243.0,59242.0,0.64153173]
[1725341342909,0.0024,59243.0,59242.0,0.64153182]
[1725341343199,0.0024,59243.0,59242.0,0.55717603]
[1725341343402,0.0024,59243.0,59242.0,0.69974035]
[1725341344207,0.0024,59243.0,59242.0,0.61537603]
[1725341345805,0.0024,59243.0,59242.0,0.6997465]
[1725341346508,0.0024,59243.0,59242.0,0.61537603]
[1725341347307,0.0024,59243.0,59242.0,0.69974104]
[1725341347908,0.0024,59243.0,59242.0,0.69974169]
[1725341348309,0.0024,59243.0,59242.0,0.6997415]
[1725341348925,0.0024,59243.0,59242.0,0.69974284]
[1725341350113,0.0024,59243.0,59242.0,0.57113408]
[1725341350524,0.0024,59243.0,59242.0,0.48676907]
[1725341357226,0.0024,59243.0,59242.0,0.42856907]
[1725341360830,0.0004,59250.0,59249.0,0.067508]
[1725341361032,0.0104,59250.0,59249.0,0.518708]
[1725341361731,0.01,59250.0,59249.0,0.518708]
[1725341362431,0.017,59250.0,59249.0,0.518708]
[1725341363123,0.026,59250.0,59249.0,0.518708]
[1725341365532,0.02,59250.0,59249.0,0.58618947]
[1725341366442,0.011,59250.0,59249.0,0.58918947]
[1725341366836,0.001,59250.0,59249.0,0.59273695]
[1725341367032,0.001,59250.0,59249.0,0.58973695]
[1725341367237,0.001,59250.0,59249.0,0.59273695]
[1725341367238,0.002,59250.0,59249.0,0.59273695]
[1725341367829,0.002,59250.0,59249.0,0.59373695]
[1725341368033,0.001,59250.0,59249.0,0.59373695]
[1725341368939,0.0564,59251.0,59250.0,0.067507]
[1725341369140,0.0564,59251.0,59250.0,0.067907]
[1725341370541,0.0564,59251.0,59250.0,0.071907]
[1725341372037,0.0564,59251.0,59250.0,0.076907]
[1725341372833,0.0039,59258.0,59250.0,1.183227]
[1725341373037,0.0039,59258.0,59253.0,0.4512]
[1725341373236,0.1144,59266.0,59253.0,0.4512]
[1725341373237,0.0039,59262.0,59253.0,0.4512]
[1725341373437,0.0039,59262.0,59253.0,1.55748]
[1725341373738,0.0039,59262.0,59253.0,0.95748]
[1725341374041,0.0039,59262.0,59253.0,1.092486]
[1725341374538,7e-08,59254.0,59253.0,1.759989]
[1725341375635,7e-08,59254.0,59253.0,1.761989]
[1725341377642,7e-08,59254.0,59253.0,2.122789]
[1725341379042,0.0039,59272.0,59261.0,0.067494]
[1725341379243,0.0534,59271.0,59270.0,0.067484]
[1725341379441,0.0534,59271.0,59270.0,0.789084]
[1725341380241,0.0534,59271.0,59270.0,0.879084]
[1725341381042,0.0674,59271.0,59270.0,0.880084]
[1725341382452,0.0814,59271.0,59270.0,0.881084]
[1725341383751,0.0814,59271.0,59270.0,0.159484]
[1725341384044,0.0814,59271.0,59270.0,0.881084]
[1725341385955,0.0814,59271.0,59270.0,0.88458777]
[1725341386452,0.0814,59271.0,59270.0,0.16298777]
[1725341386649,0.0814,59271.0,59270.0,0.88458777]
[1725341389947,0.0814,59271.0,59270.0,0.16298777]
[1725341390138,0.0814,59271.0,59270.0,0.88458777]
[1725341391545,0.0814,59271.0,59270.0,0.16298777]
[1725341391747,0.0814,59271.0,59270.0,0.88458777]
[1725341392551,0.0814,59271.0,59270.0,0.16298777]
[1725341392743,0.0814,59271.0,59270.0,0.88458777]
[1725341392939,0.0814,59271.0,59270.0,0.16298777]
[1725341393444,0.0814,59271.0,59270.0,0.88458777]
[1725341401558,0.1914,59271.0,59270.0,0.88458777]
[1725341403461,0.1914,59271.0,59270.0,0.93514653]
[1725341405064,0.1914,59271.0,59270.0,0.57434653]
[1725341405269,0.1914,59271.0,59270.0,0.88458777]
[1725341408460,0.1914,59271.0,59270.0,0.16298777]
[1725341408672,0.1914,59271.0,59270.0,0.88458777]
[1725341408869,0.1914,59271.0,59270.0,0.16298777]
[1725341409262,0.1914,59271.0,59270.0,0.88458777]
[1725341409876,0.1914,59271.0,59270.0,0.16298777]
[1725341410078,0.1914,59271.0,59270.0,0.88458777]
[1725341413483,0.028,59271.0,59270.0,0.88458777]
[1725341414284,0.00025307,59276.0,59275.0,0.067478]
[1725341414487,0.00025307,59276.0,59275.0,0.518278]
[1725341414679,0.00025307,59276.0,59275.0,0.518678]
[1725341415577,0.01425307,59276.0,59275.0,0.519678]
[1725341415780,0.02825307,59276.0,59275.0,0.520678]
[1725341423392,0.02825307,59276.0,59275.0,0.881478]
[1725341424493,0.06825307,59276.0,59275.0,0.159878]
[1725341424699,0.06825307,59276.0,59275.0,0.881478]
[1725341425190,0.06825307,59276.0,59275.0,0.159878]
[1725341425391,0.06825307,59276.0,59275.0,0.881478]
[1725341425691,0.06825307,59276.0,59275.0,0.159878]
[1725341425887,0.06825307,59276.0,59275.0,0.881478]
[1725341426283,0.06825307,59276.0,59275.0,0.791478]
[1725341426483,0.13573007,59276.0,59275.0,0.724]
[1725341426690,0.13573007,59276.0,59275.0,0.814]
[1725341428998,0.13573007,59276.0,59275.0,0.4532]
[1725341430899,0.13573007,59276.0,59275.0,0.814]
[1725341431494,0.13573007,59276.0,59275.0,0.0924]
[1725341431693,0.13573007,59276.0,59275.0,0.814]
[1725341432702,0.13573007,59276.0,59275.0,0.881478]
[1725341437096,0.13573007,59276.0,59275.0,0.520678]
[1725341439202,0.13573007,59276.0,59275.0,0.3632]
[1725341439203,0.22573007,59276.0,59275.0,0.3632]
[1725341440113,0.13573007,59276.0,59275.0,0.4532]
[1725341446502,0.12173007,59276.0,59275.0,0.4522]
[1725341446700,0.12173007,59276.0,59275.0,0.4532]
[1725341446701,0.12773007,59276.0,59275.0,0.4532]
[1725341447907,0.11473007,59276.0,59275.0,0.4522]
[1725341449011,0.11373007,59276.0,59275.0,0.4522]
[1725341449515,0.11373007,59276.0,59275.0,0.3622]
[1725341449709,0.11373007,59276.0,59275.0,0.3632]
[1725341450015,0.20373007,59276.0,59275.0,0.3632]
[1725341451016,0.20373007,59276.0,59275.0,0.0024]
[1725341451407,0.20373007,59276.0,59275.0,0.3632]
[1725341451709,0.20473007,59276.0,59275.0,0.3632]
[1725341451912,0.20573007,59276.0,59275.0,0.0024]
[1725341452118,0.20573007,59276.0,59275.0,0.3632]
[1725341452916,0.20573007,59276.0,59275.0,0.0024]
[1725341453102,0.20573007,59276.0,59275.0,0.3632]
[1725341454520,1.37932707,59276.0,59275.0,0.0024]
[1725341456122,1.37932707,59276.0,59275.0,0.0014]
[1725341456311,1.37932707,59276.0,59275.0,0.0024]
[1725341459821,1.37932707,59276.0,59275.0,0.0014]
[1725341459822,1.37832707,59276.0,59275.0,0.0014]
[1725341460023,1.37932707,59276.0,59275.0,0.0024]
[1725341460915,0.71185007,59276.0,59275.0,0.0024]
[1725341461809,0.70485007,59276.0,59275.0,0.0024]
[1725341462015,0.70985007,59276.0,59275.0,0.0024]
[1725341462319,0.70885007,59276.0,59275.0,0.0014]
[1725341462623,0.70485007,59276.0,59275.0,0.0014]
[1725341462817,0.70985007,59276.0,59275.0,0.0024]
[1725341463115,0.70985007,59276.0,59275.0,0.3632]
[1725341465415,0.70985007,59276.0,59275.0,0.0014]
[1725341465416,0.70485007,59276.0,59275.0,0.0014]
[1725341465726,0.70985007,59276.0,59275.0,0.3622]
[1725341467017,0.70985007,59276.0,59275.0,0.4522]
[1725341467018,0.11373007,59276.0,59275.0,0.4522]
[1725341468422,0.10773007,59276.0,59275.0,0.4512]
[1725341468619,0.11473007,59276.0,59275.0,0.4522]
[1725341469125,0.11473007,59276.0,59275.0,0.519678]
[1725341469322,0.11273007,59276.0,59275.0,0.518678]
[1725341469629,0.11273007,59276.0,59275.0,0.428678]
[1725341470126,0.11173007,59276.0,59275.0,0.428678]
[1725341470326,0.11273007,59276.0,59275.0,0.428678]
[1725341470622,0.11273007,59276.0,59275.0,0.067878]
[1725341470821,0.11273007,59276.0,59275.0,0.428678]
[1725341471627,0.11273007,59276.0,59275.0,0.067878]
[1725341471823,0.11273007,59276.0,59275.0,0.428678]
[1725341472520,0.20273007,59276.0,59275.0,0.3612]
[1725341473132,0.20173007,59276.0,59275.0,0.3612]
[1725341473430,0.20273007,59276.0,59275.0,0.3612]
[1725341474536,0.20273007,59276.0,59275.0,0.0004]
[1725341475030,0.20373007,59276.0,59275.0,0.0004]
[1725341475428,0.20373007,59276.0,59275.0,0.0014]
[1725341475626,0.20473007,59276.0,59275.0,0.0014]
[1725341476131,0.20373007,59276.0,59275.0,0.0014]
[1725341476433,0.20373007,59276.0,59275.0,0.0024]
[1725341477333,0.20273007,59276.0,59275.0,0.0014]
[1725341477529,0.20373007,59276.0,59275.0,0.0014]
[1725341478129,0.20373007,59276.0,59275.0,0.0004]
[1725341478928,0.20273007,59276.0,59275.0,0.0014]
[1725341479237,0.20373007,59276.0,59275.0,0.0024]
[1725341480932,0.19873007,59276.0,59275.0,0.0024]
[1725341481133,0.20373007,59276.0,59275.0,0.0024]
[1725341481724,0.20373007,59276.0,59275.0,0.0014]
[1725341481725,0.19873007,59276.0,59275.0,0.0014]
[1725341481935,0.27120707,59276.0,59275.0,0.0024]
[1725341483232,1.37732707,59276.0,59275.0,0.0024]
[1725341483423,0.27120707,59276.0,59275.0,0.0024]
[1725341483628,1.37732707,59276.0,59275.0,0.0024]
[1725341483829,0.27120707,59276.0,59275.0,0.0024]
[1725341484029,1.37732707,59276.0,59275.0,0.0024]
[1725341484240,0.87120707,59276.0,59275.0,0.0024]
[1725341484434,1.37732707,59276.0,59275.0,0.0024]
[1725341484632,0.27120707,59276.0,59275.0,0.0024]
[1725341484937,0.77732707,59276.0,59275.0,0.0024]
[1725341485140,0.27120707,59276.0,59275.0,0.0024]
[1725341486835,1.37732707,59276.0,59275.0,0.0024]
[1725341487627,1.44480407,59276.0,59275.0,0.0024]
[1725341487835,0.067485,59269.0,59268.0,0.0039]
[1725341488136,0.067485,59269.0,59265.0,0.00025307]
[1725341488137,0.067488,59266.0,59265.0,0.00025307]
[1725341488335,0.267888,59266.0,59265.0,0.00025307]
[1725341488536,0.267488,59266.0,59265.0,0.00025307]
[1725341489428,0.267488,59266.0,59265.0,0.00325307]
[1725341490837,0.27107003,59266.0,59265.0,0.00325307]
[1725341491030,0.27107003,59266.0,59265.0,0.00425307]
[1725341492239,0.27107003,59266.0,59265.0,0.00125307]
[1725341492544,0.27207003,59266.0,59265.0,0.00125307]
[1725341501359,0.33955803,59266.0,59265.0,0.00125307]
[1725341504252,0.18207003,59266.0,59265.0,0.00125307]
[1725341504452,0.27207003,59266.0,59265.0,0.00125307]
[1725341516379,0.33955803,59266.0,59265.0,0.00125307]
[1725341523674,0.70035803,59266.0,59265.0,0.00125307]
[1725341525377,0.067496,59259.0,59258.0,0.0039]
[1725341525564,0.628296,59259.0,59254.0,0.05060838]
[1725341525764,0.628296,59259.0,59253.0,0.05060838]
[1725341525765,0.067502,59254.0,59253.0,0.05060838]
[1725341525962,0.067503,59253.0,59252.0,0.05060838]
[1725341526180,0.177903,59253.0,59252.0,0.05060838]
[1725341526374,0.177903,59253.0,59251.0,0.3608]
[1725341526375,0.067504,59252.0,59251.0,0.3608]
[1725341526563,0.197904,59252.0,59251.0,0.3608]
[1725341526768,0.191904,59252.0,59251.0,0.3608]
[1725341527074,0.178904,59252.0,59251.0,0.3608]
[1725341527679,0.179904,59252.0,59251.0,0.3748]
[1725341528575,0.180904,59252.0,59251.0,0.3878]
[1725341529073,0.180904,59252.0,59251.0,0.027]
[1725341529474,0.18453428,59252.0,59251.0,0.027]
[1725341541177,0.1324,59252.0,59251.0,1.200826]
[1725341541374,0.0024,59252.0,59251.0,1.200826]
[1725341541581,0.0024,59252.0,59251.0,1.252326]
[1725341541777,0.0024,59252.0,59251.0,0.652326]
[1725341542674,0.1124,59252.0,59251.0,0.65588003]
[1725341543180,0.1124,59252.0,59251.0,0.14956003]
[1725341546179,0.1124,59252.0,59251.0,0.65588003]
[1725341546677,0.1124,59252.0,59251.0,1.31128003]
[1725341554491,0.1124,59252.0,59251.0,0.71128003]
[1725341555588,0.1124,59252.0,59251.0,0.60438003]
[1725341555790,0.1124,59252.0,59251.0,0.09806003]
[1725341556689,0.1124,59252.0,59251.0,0.18806003]
[1725341558289,0.1114,59252.0,59251.0,0.53486003]
[1725341558598,0.1124,59252.0,59251.0,0.54286003]
[1725341559091,0.1114,59252.0,59251.0,0.52986003]
[1725341559292,0.1124,59252.0,59251.0,0.53986003]
[1725341560893,0.179904,59252.0,59251.0,0.3788]
[1725341562885,0.179904,59252.0,59251.0,0.446306]
[1725341563991,0.179904,59252.0,59251.0,0.3788]
[1725341563992,0.269904,59252.0,59251.0,0.3788]
[1725341564306,0.269904,59252.0,59251.0,0.42938817]
[1725341566198,0.269904,59252.0,59251.0,0.06858817]
[1725341566795,0.179904,59252.0,59251.0,0.018]
[1725341573795,0.179904,59252.0,59251.0,0.3788]
[1725341574403,0.179904,59252.0,59251.0,0.3588]
[1725341581898,0.179904,59252.0,59251.0,0.426306]
[1725341585605,0.1124,59252.0,59251.0,0.426306]
[1725341588309,0.1124,59252.0,59251.0,0.49377413]
[1725341588711,0.1124,59252.0,59251.0,0.426306]
[1725341589716,0.1124,59252.0,59251.0,0.49377413]
[1725341589914,0.1124,59252.0,59251.0,0.426306]
[1725341594609,0.1124,59252.0,59251.0,0.067506]
[1725341595007,0.2024,59252.0,59251.0,0.428306]
[1725341595215,0.1124,59252.0,59251.0,0.428306]
[1725341598920,0.1124,59252.0,59251.0,0.067506]
[1725341599125,0.1124,59252.0,59251.0,0.428306]
[1725341599915,0.1124,59252.0,59251.0,0.518306]
[1725341600715,0.1124,59252.0,59251.0,0.157506]
[1725341600917,0.1124,59252.0,59251.0,0.518306]
[1725341603823,0.1124,59252.0,59251.0,0.157506]
[1725341604015,0.1124,59252.0,59251.0,0.518306]
[1725341604226,0.1124,59252.0,59251.0,0.428306]
[1725341604607,0.1124,59252.0,59251.0,0.518306]
[1725341605722,0.1124,59252.0,59251.0,0.157506]
[1725341606113,0.1124,59252.0,59251.0,0.518306]
[1725341607115,0.1124,59252.0,59251.0,0.157506]
[1725341607315,0.1124,59252.0,59251.0,0.518306]
[1725341608021,0.1124,59252.0,59251.0,0.157506]
[1725341608216,0.1124,59252.0,59251.0,0.518306]
[1725341608420,0.1124,59252.0,59251.0,0.428306]
[1725341608625,0.2024,59252.0,59251.0,0.49575124]
[1725341608920,0.2024,59252.0,59251.0,0.428306]
[1725341612117,0.1124,59252.0,59251.0,0.428306]
[1725341622727,0.2024,59252.0,59251.0,0.428306]
[1725341623225,0.269904,59252.0,59251.0,0.3608]
[1725341630936,0.179904,59252.0,59251.0,0.3608]
[1725341633932,0.269904,59252.0,59251.0,0.3608]
[1725341634836,0.067507,59250.0,59249.0,0.3608]
[1725341635032,0.177907,59250.0,59249.0,0.3608]
[1725341635340,0.177907,59250.0,59249.0,0.44516501]
[1725341635531,0.177907,59250.0,59249.0,0.57376826]
[1725341636032,0.178907,59250.0,59249.0,0.45216501]
[1725341636231,0.178907,59250.0,59249.0,0.3678]
[1725341636434,0.179907,59250.0,59249.0,0.45516501]
[1725341636942,0.179907,59250.0,59249.0,0.58377031]
[1725341637332,0.179907,59250.0,59249.0,0.45516501]
[1725341637638,0.179907,59250.0,59249.0,0.58377027]
[1725341637840,0.179907,59250.0,59249.0,0.3708]
[1725341638638,0.179907,59250.0,59249.0,0.45516501]
[1725341639030,0.179907,59250.0,59249.0,0.3708]
[1725341640144,0.18349628,59250.0,59249.0,0.3708]
[1725341642345,0.18349628,59250.0,59249.0,0.01]
[1725341658465,0.18349628,59250.0,59249.0,0.077508]
[1725341658466,0.1124,59250.0,59249.0,0.077508]
[1725341665581,0.1124,59250.0,59249.0,0.29047824]
[1725341668079,0.179907,59250.0,59249.0,0.29047824]
[1725341668486,0.269907,59250.0,59249.0,0.01]
[1725341669286,0.269907,59250.0,59249.0,0.07747996]
[1725341669979,0.269907,59250.0,59249.0,0.01]
[1725341670172,0.269907,59250.0,59249.0,0.07747975]
[1725341671282,0.269907,59250.0,59249.0,0.01]
[1725341674874,0.2734105,59250.0,59249.0,0.01]
[1725341688893,0.2734105,59250.0,59249.0,0.06056995]
[1725341690395,0.2734105,59250.0,59249.0,0.01]
[1725341692990,0.2734105,59250.0,59249.0,0.06057638]
[1725341693392,0.2734105,59250.0,59249.0,0.01]
[1725341694493,0.2734105,59250.0,59249.0,0.06058295]
[1725341696591,0.2734105,59250.0,59249.0,0.01]
[1725341698501,0.2734105,59250.0,59249.0,0.07747975]
[1725341698803,0.1124,59250.0,59249.0,0.01]
[1725341699095,0.1124,59250.0,59249.0,0.077508]
[1725341701997,0.1124,59250.0,59249.0,0.14498069]
[1725341703097,0.1124,59250.0,59249.0,0.07747269]
[1725341703507,0.1124,59250.0,59249.0,0.01]
[1725341704102,0.179907,59250.0,59249.0,0.01]
[1725341705506,0.344007,59250.0,59249.0,0.01]
[1725341710014,0.411514,59250.0,59249.0,0.01]
[1725341710516,0.411514,59250.0,59249.0,0.06060459]
[1725341711520,0.501514,59250.0,59249.0,0.06060459]
[1725341712613,0.501514,59250.0,59249.0,0.01]
[1725341713108,0.434007,59250.0,59249.0,0.01]
[1725341717713,0.434007,59250.0,59249.0,0.06059756]
[1725341718616,0.434007,59250.0,59249.0,0.01]
[1725341725721,0.434007,59250.0,59249.0,0.06059756]
[1725341729532,0.434007,59250.0,59249.0,0.01]
[1725341729830,0.344007,59250.0,59249.0,0.01]
[1725341735030,0.344007,59250.0,59249.0,0.077508]
[1725341736543,0.344007,59250.0,59249.0,0.08102567]
[1725341737237,0.1124,59250.0,59249.0,0.08102567]
[1725341740945,0.0024,59250.0,59249.0,1.18734567]
[1725341741137,0.0024,59250.0,59249.0,1.24034567]
[1725341744049,0.0024,59250.0,59249.0,0.64034567]
[1725341744439,0.0024,59250.0,59249.0,0.73034567]
[1725341744637,0.0024,59250.0,59249.0,0.13402567]
[1725341744833,0.1224,59250.0,59249.0,0.22402567]
[1725341746141,0.1224,59250.0,59249.0,0.29131828]
[1725341748754,0.1224,59250.0,59249.0,0.22402567]
[1725341749749,0.1224,59250.0,59249.0,0.58482567]
[1725341750639,0.1224,59250.0,59249.0,0.01]
[1725341750640,0.279907,59250.0,59249.0,0.01]
[1725341755240,0.331807,59250.0,59249.0,0.01]
[1725341755647,0.331807,59250.0,59249.0,0.06046357]
[1725341756755,0.331807,59250.0,59249.0,0.01]
[1725341757852,0.331807,59250.0,59249.0,0.06048921]
[1725341763563,0.2643,59250.0,59249.0,0.06048921]
[1725341763753,0.2643,59250.0,59249.0,0.01]
[1725341764060,0.1743,59250.0,59249.0,0.01]
[1725341764255,0.1743,59250.0,59249.0,0.1]
[1725341764451,0.1743,59250.0,59249.0,0.167508]
[1725341765965,0.1743,59250.0,59249.0,0.1711406]
[1725341774467,0.241807,59250.0,59249.0,0.1711406]
[1725341774657,0.241807,59250.0,59249.0,0.167508]
[1725341775061,0.241807,59250.0,59249.0,0.077508]
[1725341786972,0.331807,59250.0,59249.0,0.077508]
[1725341787169,0.331807,59250.0,59249.0,0.01]
[1725341787375,0.331807,59250.0,59249.0,0.07738752]
[1725341787582,0.692607,59250.0,59249.0,0.07738752]
[1725341787771,0.692607,59250.0,59249.0,0.01]
[1725341789781,0.692607,59250.0,59249.0,0.06053726]
[1725341790085,0.692607,59250.0,59249.0,0.01]
[1725341790989,0.331807,59250.0,59249.0,0.01]
[1725341792571,0.331807,59250.0,59249.0,0.06053012]
[1725341792778,0.331807,59250.0,59249.0,0.01]
[1725341798183,0.241807,59250.0,59249.0,0.01]
[1725341819793,0.309314,59250.0,59249.0,0.01]
[1725341820702,0.309314,59250.0,59247.0,7e-08]
[1725341820703,0.202527,59248.0,59247.0,7e-08]
[1725341820891,0.202527,59248.0,59241.0,0.0039]
[1725341820892,0.135032,59242.0,59241.0,0.0039]
[1725341821092,0.135032,59242.0,59237.0,0.05054819]
[1725341821093,0.06752,59238.0,59237.0,0.05054819]
[1725341821299,0.26792,59238.0,59237.0,0.05054819]
[1725341821502,0.26752,59238.0,59237.0,0.05054819]
[1725341821695,0.26752,59238.0,59235.0,0.05054819]
[1725341821696,0.067523,59236.0,59235.0,0.05054819]
[1725341821896,0.276923,59236.0,59235.0,0.05054819]
[1725341822096,0.067524,59235.0,59234.0,0.05054819]
[1725341822298,0.273924,59235.0,59234.0,0.05054819]
[1725341822495,0.067525,59234.0,59233.0,0.05054819]
[1725341822695,0.267925,59234.0,59233.0,0.05054819]
[1725341822906,0.267925,59234.0,59230.0,0.00025307]
[1725341823105,0.0884,59231.0,59230.0,0.00025307]
[1725341823499,0.0874,59231.0,59230.0,0.00025307]
[1725341823894,0.0834,59231.0,59230.0,0.00025307]
[1725341824095,0.0834,59231.0,59230.0,0.00225307]
[1725341824601,0.0834,59231.0,59230.0,0.36101307]
[1725341824798,0.0834,59231.0,59230.0,0.36301307]
[1725341825497,0.0834,59231.0,59230.0,0.36701307]
[1725341825695,0.0844,59231.0,59230.0,0.36701307]
[1725341826203,0.0844,59231.0,59230.0,0.00621307]
[1725341830797,0.2044,59231.0,59230.0,0.00621307]
[1725341833804,0.1214,59231.0,59230.0,0.00621307]
[1725341833996,0.2114,59231.0,59230.0,0.07374207]
[1725341835106,0.16916498,59231.0,59230.0,0.07374207]
[1725341836205,0.07916498,59231.0,59230.0,0.73760959]
[1725341836505,0.07916498,59231.0,59230.0,1.03102207]
[1725341836710,0.07916498,59231.0,59230.0,1.63102207]
[1725341839105,0.07916498,59231.0,59230.0,0.52454207]
[1725341840512,0.07916498,59231.0,59230.0,0.43454207]
[1725341842307,0.07916498,59231.0,59230.0,0.52454207]
[1725341844912,0.16916498,59231.0,59230.0,0.43454207]
[1725341845817,0.23669298,59231.0,59230.0,0.43454207]
[1725341847516,0.23669298,59231.0,59230.0,0.43419074]
[1725341848312,0.23669298,59231.0,59230.0,0.33419074]
[1725341848508,0.23669298,59231.0,59230.0,0.26701307]
[1725341849617,0.24016573,59231.0,59230.0,0.26701307]
[1725341849905,0.24016573,59231.0,59228.0,0.08436501]
[1725341850111,0.0904,59229.0,59228.0,0.08436501]
[1725341850311,0.0904,59229.0,59227.0,0.15550496]
[1725341850512,0.0904,59229.0,59228.0,0.21301353]
[1725341850816,0.09,59229.0,59228.0,0.08436501]
[1725341851022,0.09,59229.0,59228.0,0.28054502]
[1725341851214,0.09,59229.0,59228.0,0.15589701]
[1725341852921,0.091,59229.0,59228.0,0.28454565]
[1725341853122,0.091,59229.0,59228.0,0.20018064]
[1725341854013,0.091,59229.0,59228.0,0.20018109]
[1725341859115,0.091,59229.0,59228.0,0.071532]
[1725341859322,0.091,59229.0,59228.0,0.20017988]
[1725341861022,0.091,59229.0,59228.0,0.071532]
[1725341868126,0.091,59229.0,59228.0,0.1557577]
[1725341868922,0.091,59229.0,59228.0,0.071532]
[1725341870419,0.158531,59229.0,59228.0,0.071532]
[1725341870630,0.158531,59229.0,59228.0,0.004]
[1725341870826,0.278531,59229.0,59228.0,0.004]
[1725341871331,0.639331,59229.0,59228.0,0.004]
[1725341871629,0.639331,59229.0,59228.0,0.0714149]
[1725341874633,0.639331,59229.0,59228.0,0.004]
[1725341876732,0.706862,59229.0,59228.0,0.004]
[1725341878322,0.706862,59229.0,59225.0,0.00025307]
[1725341878323,0.067534,59226.0,59225.0,0.00025307]
[1725341878524,0.286934,59226.0,59225.0,0.00025307]
[1725341880531,0.286934,59226.0,59220.0,0.0039]
[1725341880532,0.13508,59221.0,59220.0,0.0039]
[1725341880731,0.067544,59217.0,59216.0,0.0039]
[1725341880930,0.2004,59217.0,59211.0,0.0039]
[1725341881147,0.09,59210.0,59208.0,0.05402614]
[1725341881433,0.0004,59209.0,59208.0,0.07103288]
[1725341881734,0.0894,59210.0,59208.0,0.07103288]
[1725341881931,0.0894,59210.0,59209.0,0.0004]
[1725341882127,0.00025328,59215.0,59214.0,0.067548]
[1725341882336,0.00025328,59215.0,59214.0,0.428348]
[1725341882529,0.00025328,59215.0,59214.0,0.428748]
[1725341883226,0.09,59221.0,59220.0,0.067541]
[1725341883534,0.09,59221.0,59220.0,0.067941]
[1725341883944,0.09,59223.0,59222.0,0.067538]
[1725341884129,0.09,59223.0,59222.0,0.067938]
[1725341884130,0.1,59223.0,59222.0,0.067938]
[1725341884534,0.1,59223.0,59222.0,0.13518525]
[1725341885131,0.1,59223.0,59222.0,0.067938]
[1725341885534,0.106,59223.0,59222.0,0.067938]
[1725341885736,0.108,59223.0,59222.0,0.067938]
[1725341887435,0.108,59223.0,59222.0,0.06764725]
[1725341887936,0.108,59223.0,59222.0,0.0004]
[1725341889237,0.175537,59223.0,59222.0,0.0004]
[1725341894640,0.018,59223.0,59222.0,0.4512]
[1725341894830,0.008,59223.0,59222.0,0.518739]
[1725341896233,0.008,59223.0,59222.0,1.625299]
[1725341896435,0.0046,59244.0,59223.0,0.067536]
[1725341896736,0.177517,59241.0,59240.0,0.0004]
[1725341897639,0.185517,59241.0,59240.0,0.0004]
[1725341897845,0.546317,59241.0,59240.0,0.0004]
[1725341898144,0.548317,59241.0,59240.0,0.0004]
[1725341898346,0.554317,59241.0,59240.0,0.0004]
[1725341898845,0.566317,59241.0,59240.0,0.0004]
[1725341902940,0.562317,59241.0,59240.0,0.0014]
[1725341904240,0.554317,59241.0,59240.0,0.0014]
[1725341904449,0.556317,59241.0,59240.0,0.0014]
[1725341904850,0.550317,59241.0,59240.0,0.0014]
[1725341905147,0.561317,59241.0,59240.0,0.0014]
[1725341923151,0.651317,59241.0,59240.0,0.0014]
[1725341942471,0.4938,59241.0,59240.0,0.0014]
[1725341942664,0.023,59241.0,59240.0,0.57004268]
[1725341944063,0.023,59241.0,59240.0,0.519718]
[1725341948679,0.023,59241.0,59240.0,0.52319367]
[1725341950270,0.541317,59241.0,59240.0,0.0014]
[1725341950475,0.661317,59241.0,59240.0,0.0014]
[1725341955070,0.300517,59241.0,59240.0,0.0014]
[1725341955279,0.661317,59241.0,59240.0,0.0014]
[1725341955673,0.300517,59241.0,59240.0,0.0014]
[1725341955983,0.661317,59241.0,59240.0,0.0014]
[1725341956780,0.300517,59241.0,59240.0,0.0014]
[1725341956972,0.661317,59241.0,59240.0,0.0014]
[1725341957369,0.728834,59241.0,59240.0,0.0014]
[1725341961178,0.368034,59241.0,59240.0,0.0014]
[1725341961388,0.728834,59241.0,59240.0,0.0014]
[1725341963988,0.571317,59241.0,59240.0,0.0014]
[1725341964179,0.661317,59241.0,59240.0,0.0014]
[1725341979293,0.728834,59241.0,59240.0,0.0014]
[1725341982297,1.835234,59241.0,59240.0,0.0014]
[1725341982599,0.067523,59236.0,59235.0,0.00025328]
[1725341982792,0.638723,59236.0,59235.0,0.00025328]
[1725341984791,0.638723,59236.0,59235.0,0.00125328]
[1725341984792,0.647723,59236.0,59235.0,0.00125328]
[1725341984999,0.651723,59236.0,59235.0,0.00125328]
[1725341992507,0.65530036,59236.0,59235.0,0.00125328]
[1725341999927,0.29450036,59236.0,59235.0,0.00125328]
[1725342000126,0.65530036,59236.0,59235.0,0.00125328]
[1725342000721,0.29450036,59236.0,59235.0,0.00125328]
[1725342000916,0.65530036,59236.0,59235.0,0.00125328]
[1725342003315,0.29450036,59236.0,59235.0,0.00125328]
[1725342003629,0.65530036,59236.0,59235.0,0.00125328]
[1725342005622,0.56530036,59236.0,59235.0,0.00125328]
[1725342005828,0.56530036,59236.0,59235.0,0.06877728]
[1725342005829,0.13697736,59236.0,59235.0,0.06877728]
[1725342007015,0.13697736,59236.0,59235.0,0.00125328]
[1725342007619,0.20450036,59236.0,59235.0,0.00125328]
[1725342010332,0.1334,59236.0,59235.0,0.42957728]
[1725342010832,0.1334,59236.0,59235.0,0.47947728]
[1725342014743,0.1334,59236.0,59235.0,1.58591728]
[1725342014934,0.0039,59244.0,59243.0,0.067515]
[1725342015135,0.0039,59252.0,59245.0,0.067512]
[1725342015335,0.0039,59252.0,59245.0,0.067912]
[1725342015541,0.067506,59251.0,59245.0,0.067512]
[1725342017236,0.00725328,59246.0,59245.0,0.068512]